Cogmind - Beta 13 X2 @@@ ROGUE MODE // 2024.01.09 @ 22:35:36 Player: Boris Result: Destroyed by OD-LEA(R) with Subdweller Laser Performance ------------- Evolutions (0) 0 Regions Visited (2) 400 Robots Destroyed (6) 30 Value Destroyed (50) 50 Prototype IDs (0) 0 Alien Tech Used (0) 0 Bonus (0) 0 TOTAL SCORE: 480 Bonus ------- None Cogmind --------- Core Integrity 0/250 Matter 266/300 Energy 100/100 System Corruption 0% Temperature Cool (6) Movement Core (150) Ox2 Location -10/Subcaves Parts ------- > --- POWER (1) -------- (None) > --- PROPULSION (2) --- (None) > --- UTILITY (2) ------ Small Storage Unit > --- WEAPON (2) ------- Assault Rifle Light Assault Rifle > --- INVENTORY (8) ---- Light Ion Engine Peak State ------------ > --- POWER ------------ Ion Engine > --- PROPULSION ------- Light Treads Light Treads > --- UTILITY ---------- Small Storage Unit Seismic Detector > --- WEAPON ----------- Medium Laser Small Laser > --- INVENTORY -------- Light Ion Engine Assault Rifle [Rating: 7] Favorites ----------- Power Ion Engine Engine Ion Engine Propulsion Light Treads Treads Light Treads Utility Small Storage Unit Device Seismic Detector Storage Small Storage Unit Processor Targeting Computer Weapon Medium Laser Energy Gun Medium Laser Ballistic Gun Light Assault Rifle Build | -11 -10 -10 ------- Run | Yrd Mat Sub Slots Evolved . | . . . Power . | . . . Propulsion . | . . . Utility . | . . . Weapon . | . . . Parts Attached 11 | 7 1 3 Power 1 | 1 . . Engine 1 | 1 . . Core . | . . . Reactor . | . . . Propulsion 2 | 2 . . Treads 2 | 2 . . Leg . | . . . Wheel . | . . . Hover . | . . . Flight . | . . . Utility 4 | 2 1 1 Device 2 | 1 . 1 Storage 1 | 1 . . Processor 1 | . 1 . Hackware . | . . . Protection . | . . . Artifact . | . . . Weapon 4 | 2 . 2 Energy Gun 2 | 2 . . Energy Cannon . | . . . Ballistic Gun 2 | . . 2 Ballistic Cannon . | . . . Launcher . | . . . Special Weapon . | . . . Impact Weapon . | . . . Slashing Weapon . | . . . Piercing Weapon . | . . . Special Melee Weapon . | . . . Unidentified Prototypes . | . . . Parts Lost 6 | . . 6 Power 1 | . . 1 Propulsion 2 | . . 2 Utility 1 | . . 1 Weapon 2 | . . 2 Highest Loss Streak 5 | . . 5 To Critical Strikes . | . . . Average Slot Usage (%) 97 | . 100 92 Engine 14 | . 14 14 Treads 27 | . 28 25 Device 5 | . 3 9 Storage 14 | . 14 14 Processor 7 | . 10 . Energy Gun 27 | . 28 25 Naked Turns . | . . . Heaviest Build 14 | 14 14 14 Greatest Support 40 | 40 40 40 Greatest Overweight (x) 1 | 1 . . Average Overweight (x) . | . . . Largest Inventory Capacity 8 | 8 8 8 Average Capacity 7 | 7 8 8 Most Carried 4 | 2 4 4 Average Carried 3 | 1 3 2 Final Capacity 8 | 8 8 8 Final Carried 4 | 2 4 1 Class Distribution -------------------- 100% | Mutant Dominant Class ---------------- Mutant | -10/Materials Mutant | -10/Subcaves Resources | -11 -10 -10 ----------- Run | Yrd Mat Sub Matter Collected 288 | 270 . 18 Remotely . | . . . Salvage Created 176 | 122 54 . Parts 7 | 3 4 . Haulers Intercepted . | . . . Recyclers Shooed . | . . . Parts Field Recycled . | . . . Retrieved Matter . | . . . Parts Self-Destructed 14 | . . 14 Prevented . | . . . Kills | -11 -10 -10 ------- Run | Yrd Mat Sub Combat Hostiles Destroyed 3 | . 3 . Guns 3 | . 3 . Classes Destroyed 3 | 2 1 . Tunneler 2 | 2 . . Recycler 1 | 1 . . Swarmer 3 | . 3 . Best Kill Streak 3 | 1 3 . Combat Bots Only 3 | . 3 . Max Kills in Single Turn 1 | 1 1 . Gunslinging . | . . . Exploded . | . . . Melee . | . . . Uniques/NPCs Destroyed . | . . . Combat | -11 -10 -10 -------- Run | Yrd Mat Sub Hostile Shots Fired 53 | . 6 47 Missed 5 | . 1 4 Damage Taken 901 | . 39 862 Core 261 | . 22 239 Absorbed by Shields . | . . . Core Remaining (%) 100 | 100 . . Volleys Fired 51 | 12 7 32 Largest 2 | 2 2 2 Hottest 90 | 90 90 90 Shots Fired 99 | 24 14 61 Gun 99 | 24 14 61 Cannon . | . . . Launcher . | . . . Special . | . . . Kinetic 12 | . . 12 Thermal 87 | 24 14 49 Explosive . | . . . Electromagnetic . | . . . Robot Hit Streak 61 | 4 8 61 Robot Miss Streak 3 | 2 3 . Penetration Max . | . . . Secondary Targets . | . . . Shots Hit Robots 85 | 16 8 61 Core Hits 7 | 4 3 . Critical Kills . | . . . Critical Parts Destroyed . | . . . Critical Strikes 1 | 1 . . Burn 1 | 1 . . Melee Attacks . | . . . Impact . | . . . Slashing . | . . . Piercing . | . . . Sneak Attacks . | . . . Combat Hostiles . | . . . Follow-up Attacks . | . . . Damage Inflicted 284 | 187 97 . Guns 283 | 187 96 . Cannons . | . . . Explosions . | . . . Melee . | . . . Ramming 1 | . 1 . Kinetic . | . . . Thermal 283 | 187 96 . Explosive . | . . . Electromagnetic . | . . . Impact . | . . . Slashing . | . . . Piercing . | . . . Highest Corruption . | . . . Average Corruption . | . . . Corruption Purged . | . . . Corruption Blocked . | . . . Overload Shots . | . . . Overflow Damage . | . . . Projectiles . | . . . Explosions . | . . . Melee . | . . . Knockbacks . | . . . Impact . | . . . Kinetic . | . . . Secondary . | . . . Self-Inflicted Damage . | . . . Shots . | . . . Rammed 1 | . 1 . Targets Rammed 1 | . 1 . Kicked . | . . . Crushed . | . . . Highest Temperature 150 | 150 150 . Average Temperature 57 | 53 64 . Received Heat Transfer 258 | . . 258 Siege Activations . | . . . Robots Corrupted . | . . . Combat Hostiles . | . . . Parts Fried . | . . . Impact Corruptions . | . . . Robots Melted . | . . . Combat Hostiles . | . . . Parts Melted 1 | . 1 . Heat Transferred 818 | 558 260 . Parts Sabotaged . | . . . Parts Stolen . | . . . Parts Stripped . | . . . Power Chain Reactions . | . . . Missiles Intercepted . | . . . Alert | -11 -10 -10 ------- Run | Yrd Mat Sub Peak Influence 119 | 15 119 . Initial 9 | . 9 . Average 37 | 4 46 . Maximum Alert Level . | . . . Low Security (%) 100 | 100 100 . Level 1 . | . . . Level 2 . | . . . Level 3 . | . . . Level 4 . | . . . Level 5 . | . . . High Security . | . . . Max Security . | . . . Squads Dispatched . | . . . Investigation . | . . . Extermination . | . . . Reinforcement . | . . . Assault . | . . . Garrison . | . . . Intercept . | . . . Searches Triggered . | . . . Construction Impeded . | . . . Haulers Reinforced . | . . . Active Scanning Responses . | . . . Cargo Convoy Interrupts . | . . . Stealth | -11 -10 -10 --------- Run | Yrd Mat Sub Distress Signals 1 | . 1 . Communications Jammed . | . . . Distress Signals . | . . . Times Spotted 6 | . 5 1 Peak Tracking Total 5 | . 5 1 Tactical Retreats . | . . . Traps | -11 -10 -10 ------- Run | Yrd Mat Sub Traps Triggered . | . . . Indirectly . | . . . Trap Hack Attempts . | . . . Triggered . | . . . Disarmed . | . . . Reprogrammed . | . . . Reused . | . . . Traps Extracted . | . . . Installed . | . . . Triggered . | . . . Machines | -11 -10 -10 ---------- Run | Yrd Mat Sub Machines Disabled . | . . . Max in Single Turn . | . . . Machines Repaired . | . . . Machines Dismantled . | . . . Machines Sabotaged . | . . . Overloaded Fab Kills . | . . . Hacking | -11 -10 -10 --------- Run | Yrd Mat Sub Machines Accessed 2 | . 2 . Terminals 2 | . 2 . Fabricators . | . . . Repair Stations . | . . . Recycling Units . | . . . Scanalyzers . | . . . Garrison Access . | . . . Total Hacks 7 | . 7 . Successful 4 | . 4 . Failed 3 | . 3 . Catastrophic 2 | . 2 . Database Lockouts . | . . . Manual 5 | . 5 . Terminals 7 | . 7 . Fabricators . | . . . Repair Stations . | . . . Recycling Units . | . . . Scanalyzers . | . . . Garrison Access . | . . . Terminal Hacks 1 | . 1 . Hauler Manifests 1 | . 1 . Fabricator Hacks . | . . . Repair Station Hacks . | . . . Recycling Unit Hacks . | . . . Scanalyzer . | . . . Garrison Access Hacks . | . . . Unauthorized Hacks 3 | . 3 . Terminals 3 | . 3 . Botnet 2 | . 2 . Operators 1 | . 1 . Fabricators . | . . . Repair Stations . | . . . Recycling Units . | . . . Scanalyzers . | . . . Garrison Access . | . . . Data Cores Recovered . | . . . Used . | . . . Hacking Detections 2 | . 2 . Full Trace Events . | . . . Feedback Events . | . . . Feedback Blocked . | . . . Robot Schematics Acquired . | . . . Robots Built . | . . . Authchips . | . . . Time . | . . . Total Robot Build Rating . | . . . Part Schematics Acquired . | . . . Parts Built . | . . . Authchips . | . . . Time . | . . . Total Part Build Rating . | . . . Parts Repaired . | . . . Time . | . . . Parts Recycled . | . . . Recycled Matter . | . . . Retrieved Matter . | . . . Retrieved Components . | . . . Parts Scanalyzed . | . . . Part Schematics Acquired . | . . . Parts Damaged . | . . . Bothacking | -11 -10 -10 ------------ Run | Yrd Mat Sub Used RIF Installer . | . . . Robots Hacked . | . . . Non-combat . | . . . Combat . | . . . Robot Hacks Applied . | . . . Relay Couplers Released . | . . . Fabnet Peak Effective % . | . . . Robots Rewired . | . . . Allies Hacked . | . . . Hacks Repelled . | . . . Allies | -11 -10 -10 -------- Run | Yrd Mat Sub Total Allies . | . . . Largest Group . | . . . Highest-Rated Group . | . . . Highest-Rated Ally . | . . . Total Orders . | . . . Ally Attacks . | . . . Total Damage . | . . . Kills . | . . . Allies Corrupted . | . . . Allies Melted . | . . . Intel | -11 -10 -10 ------- Run | Yrd Mat Sub Robot Analysis Total . | . . . Derelict Logs Recovered . | . . . Drone Launches . | . . . Drone Recoveries . | . . . Exploration | -11 -10 -10 ------------- Run | Yrd Mat Sub Turns Passed 1092 | 182 644 266 Spaces Moved 300 | 84 114 102 Core 5 | 5 . . Treads 295 | 79 114 102 Legs . | . . . Wheels . | . . . Hover . | . . . Flight . | . . . Fastest Speed 50 | 50 160 160 Average Speed 158 | 154 160 160 Slowest Speed 160 | 160 160 160 Overloaded Moves . | . . . Propulsion Burnouts . | . . . Robots Hopped . | . . . Cave-ins Triggered . | . . . Exploration Rate (%) 14 | 6 28 8 Regions Visited 2 Branch Regions 1 Pre-discovered Areas . | . . . Known Exits Taken . | . . . Unknown Exits Taken 2 | 1 1 . Scrap Searched . | . . . Spaces Dug . | . . . Terrain Destroyed . | . . . Melee . | . . . Projectile . | . . . AOE . | . . . Terrain Rammed . | . . . Walls Destroyed . | . . . Machines Disabled . | . . . Actions | -11 -10 -10 --------- Run | Yrd Mat Sub Total 816 | 109 561 146 Wait 450 | 5 437 8 Move 298 | 83 113 102 Hop . | . . . Pick Up 4 | 2 2 . Fast Attach 7 | 7 . . Attach 3 | . . 3 Detach 1 | . . 1 Swap 1 | . 1 . Drop . | . . . Fire 51 | 12 7 32 Melee . | . . . Ram . | . . . Kick . | . . . Crush 1 | . 1 . Escape Stasis . | . . . Rewire . | . . . Trap . | . . . Miscellaneous . | . . . Route ------- -11/Scrapyard -10/Materials (discovered 3 exits: [*Min x2] / [*Sub]) -10/Subcaves (discovered 1 exit: [*Mat]) History --------- Turn | Location | Event 2 | -11/Scrapyard | Met Revision 17 32 | -11/Scrapyard | Discovered new exit (range 15) 183 | -11/Scrapyard | Entered Materials 223 | -10/Materials | Discovered new exit (range 5) 318 | -10/Materials | Build established: Mutant 332 | -10/Materials | Discovered new exit (range 15) 807 | -10/Materials | Discovered new exit (range 6) 827 | -10/Materials | Entered Subcaves 976 | -10/Subcaves | Discovered new exit (range 11) 1040 | -10/Subcaves | Core integrity fell below 50% 1066 | -10/Subcaves | Core integrity fell below 20% 1093 | -10/Subcaves | Destroyed by OD-LEA(R) with Subdweller Laser Last Messages --------------- 00819_ T-07 Excavator is excavating. 00821_ U-05 Engineer lays Concrete. 00822_ U-05 Engineer builds a Wall. 00824_ T-07 Excavator is excavating. 00826_ U-05 Engineer lays Concrete. 00827_ U-05 Engineer builds a Wall. LOCATION=UNKNOWN AMBIENT_HEAT=-10 GOAL=ESCAPE 00830_ Discarded Targeting Computer. 00836_ Acquired 10 matter. 00840_ Acquired 8 matter. 00976_ EXIT=FOUND 00997_ OD-LEA(R) angrily emerges from the Twisted Machinery. 01015_ Seismic Detector destroyed. 01057_ Lgt. Treads destroyed. 01069_ Med. Laser destroyed. 01075_ Sml. Laser destroyed. 01085_ Lgt. Treads destroyed. 01091_ Ion Engine destroyed. Map ----- +----------------------------------------------------+ | ??????????????????????## #??????????????? | | ??????????????????##### %##??????????????? | | ?????????????????## ## % #??????????????? | | ?????????????????# # ###?????????????? | | ????????????????## ##????????????? | | ????????????????# # #????????????? | | ????????????????#% ?## #????????????? | | ????????????????#% #?## #????????????? | | ????????????????# ### #????????????? | | ????????????????# # ### #????????????? | | ????????????????# #??##????????????? | | ????????????????## ## #????????????????? | | ????????????????## ######????????????????? | | ????????????????# % #?????????????????????? | | ????????????????## ##????????????????????? | | ????????????????## #????????????????????? | | ????????????????# #????????????????????? | | ????????????????# ###???????????????????? | | ????????????????# ##??????????????????? | | ???????????????### ##?????????????????? | | ???????????????# #?????????????????? | | ???????????????# ##?????????????????? | | ???????????#??### ##?????????????????? | | ???????????#$ #$#< < ###???????????????? | | ????????????# & #???????????????? | | ???????????#$ "##R@ #??????????????? | | ???????????##$?# #?????????????? | | ????????????#??#### ## #?????????????? | | ??????????????????# ##? ##?????????????? | | ??????????????????## #???#??????????????? | | ???????????????????? ##??????????????????? | | ???????????????????? ???????????????????? | | ????????????????????$ #??????????????????? | | ???????????????????? ??????????????????? | | ???????????????????? ?????????????????? | | ???????????????????? ?????????????????? | | ???????????????????? ????????????????? | | ????????????????????? #???????????????? | | ?????????????????????# ????????????????? | | ??????????????????????????????????????????? | | ??????????????????????????????????????????? | | ??????????????????????????????????????????? | | ??????????????????????????????????????????? | | ??????????????????????????????????????????? | | ??????????????????????????????????????????? | | ??????????????????????????????????????????? | | ??????????????????????????????????????????? | | ??????????????????????????????????????????? | | ??????????????????????????????????????????? | | ??????????????????????????????????????????? | +----------------------------------------------------+ Best States ------------- Heat Dissipation 25 Energy Generation 10 Energy Capacity 250 Matter Stores 300 Matter Capacity 300 Sight Range 16 Terrain Scan Density 10 Evasion (%) 40 Targeting Accuracy 5 Recoil Reduction 2 Item Schematics ----------------- None Robot Schematics ------------------ None Fabricated ------------ Nothing Alien Tech Used ----------------- None Achievements -------------- None Challenges ------------ None Game ------ Seed StealthDisposableBarrier Manual? 0 Play Time 00:06:37 Cumulative 397.4 hours Start 2024.01.09 @ 22:20:59 End 2024.01.09 @ 22:35:36 Sessions 1 Manual Loads 0 Difficulty Rogue Special Mode None Game No. 146 Rogue 131 Adventurer 15 Explorer 0 Win Type - Total 25 Types 7/1/7/2/2/0/4/1/1 Lore% 88 Gallery% 90 Achievement% 83 Wizard Run 0 Options --------- ASCII 0 Keyboard 0 Movement Numpad Keybinds 0 Fullscreen 1 Font 18/SmallcapsGlow Map View 76x50 Zoom Use 0% Tactical HUD 1 Map Filters NONE Filters NONE Steam 1 RUN: 9b563aca-a3ca-4879-bbd0-0e9c742f7031